fUST/lending_fUST_20260127
["ID","MTS","AMOUNT","RATE_DAILY","PERIOD"]
[403695984,1769490534165,500.0,0.00034717,120]
[403695991,1769490535125,500.0,0.00034717,120]
[403695992,1769490535250,500.0,0.00034717,120]
[403695993,1769490535353,500.0,0.00034717,120]
[403695994,1769490535463,527.24216411,0.00034717,120]
[403695995,1769490535583,195.23254713,0.00034717,120]
[403695996,1769490535648,500.0,0.00034717,120]
[403695997,1769490535825,425.54572095,0.00034717,120]
[403695998,1769490536806,500.0,0.00034717,120]
[403695999,1769490537026,500.0,0.00034717,120]
[403696000,1769490537161,500.0,0.00034717,120]
[403696001,1769490537258,500.0,0.00034717,120]
[403696002,1769490537428,500.0,0.00034717,120]
[403696003,1769490537494,235.6121066,0.00034717,120]
[403696004,1769490537710,500.0,0.00034717,120]
[403696005,1769490539701,558.44603728,0.00034717,120]
[403696007,1769490541639,500.0,0.00034717,120]
[403696008,1769490541876,500.0,0.00034717,120]
[403696012,1769490542224,500.0,0.00034717,120]
[403696016,1769490544136,430.03612587,0.00034717,120]
[403696017,1769490544295,507.0714998,0.00034717,120]
[403696018,1769490544989,500.0,0.00034717,120]
[403696021,1769490545300,500.0,0.00034717,120]
[403696022,1769490545370,500.0,0.00034717,120]
[403696023,1769490545538,500.0,0.00034717,120]
[403696024,1769490545605,500.0,0.00034717,120]
[403696025,1769490545821,500.0,0.00034717,120]
[403696026,1769490545888,500.0,0.00034717,120]
[403696027,1769490546110,546.29556917,0.00034717,120]
[403696028,1769490546405,500.0,0.00034717,120]
[403696034,1769490548312,500.0,0.00034717,120]
[403696035,1769490548386,533.43852037,0.00034717,120]
[403696036,1769490548569,500.0,0.00034717,120]
[403696037,1769490548771,500.0,0.00034717,120]
[403696038,1769490549047,500.0,0.00034717,120]
[403696039,1769490549967,323.68321179,0.00034717,120]
[403696042,1769490550308,534.51157866,0.00034717,120]
[403696044,1769490550584,500.0,0.00034717,120]
[403696045,1769490550824,500.0,0.00034717,120]
[403696046,1769490550882,500.0,0.00034717,120]
[403696048,1769490551050,500.0,0.00034717,120]
[403696049,1769490551113,251.67459934,0.00034717,120]
[403696050,1769490551564,542.29988095,0.00034717,120]
[403696051,1769490552668,504.12209465,0.00034717,120]
[403696054,1769490553172,515.62431547,0.00034717,120]
[403696055,1769490553514,501.0763694,0.00034717,120]
[403696056,1769490554061,505.42548558,0.00034717,120]
[403696057,1769490555250,500.0,0.00034717,120]
[403696058,1769490555312,500.0,0.00034717,120]
[403696059,1769490555501,500.0,0.00034717,120]
[403696060,1769490555585,500.0,0.00034717,120]
[403696061,1769490555765,490.87860282,0.00034717,120]
[403696062,1769490555830,500.0,0.00034717,120]
[403696063,1769490555892,541.61023043,0.00034717,120]
[403696064,1769490555952,500.0,0.00034717,120]
[403696065,1769490556101,500.0,0.00034717,120]
[403696066,1769490556360,500.0,0.00034717,120]
[403696067,1769490556600,372.12,0.00034717,120]
[403696071,1769490558805,500.0,0.00034717,120]
[403696072,1769490559038,500.0,0.00034717,120]
[403696074,1769490560631,500.0,0.00034717,120]
[403696075,1769490560872,500.0,0.00034717,120]
[403696077,1769490561137,500.0,0.00034717,120]
[403696078,1769490561690,601.01492477,0.00034717,120]
[403696079,1769490561957,500.0,0.00034717,120]
[403696081,1769490563096,509.60038823,0.00034717,120]
[403696083,1769490564436,500.0,0.00034717,120]
[403696086,1769490567323,500.0,0.00034717,120]
[403696087,1769490567392,500.0,0.00034717,120]
[403696088,1769490567565,500.0,0.00034717,120]
[403696089,1769490567633,500.0,0.00034717,120]
[403696090,1769490567704,266.44,0.00034717,120]
[403696091,1769490567770,500.0,0.00034717,120]
[403696092,1769490567853,500.0,0.00034717,120]
[403696093,1769490567971,500.0,0.00034717,120]
[403696094,1769490568088,500.0,0.00034717,120]
[403696097,1769490570336,534.73637908,0.00034717,120]
[403696098,1769490570680,500.0,0.00034717,120]
[403696099,1769490571408,500.0,0.00034717,120]
[403696100,1769490571662,500.0,0.00034717,120]
[403696101,1769490571912,500.0,0.00034717,120]
[403696102,1769490572148,500.0,0.00034717,120]
[403696104,1769490572400,500.0,0.00034717,120]
[403696105,1769490572519,500.0,0.00034717,120]
[403696106,1769490572655,500.0,0.00034717,120]
[403696107,1769490572777,500.0,0.00034717,120]
[403696108,1769490573024,500.0,0.00034717,120]
[403696109,1769490573089,500.0,0.00034717,120]
[403696110,1769490573331,500.0,0.00034717,120]
[403696113,1769490574575,527.21919212,0.00034717,120]
[403696114,1769490575132,500.0,0.00034717,120]
[403696115,1769490575403,536.16656784,0.00034717,120]
[403696116,1769490575476,500.0,0.00034717,120]
[403696117,1769490576395,526.10060345,0.00034717,120]
[403696119,1769490578172,527.51342295,0.00034717,120]
[403696121,1769490578931,500.0,0.00034717,120]
[403696122,1769490579237,500.0,0.00034717,120]
[403696123,1769490579908,501.65217543,0.00034717,120]
[403696124,1769490580011,500.0,0.00034717,120]
[403696126,1769490582223,500.0,0.00034717,120]
[403696127,1769490582474,500.0,0.00034717,120]
[403696129,1769490583349,525.75672509,0.00034717,120]
[403696130,1769490584614,500.0,0.00034717,120]
[403696132,1769490584731,500.0,0.00034717,120]
[403696133,1769490584964,500.0,0.00034717,120]
[403696134,1769490585149,500.0,0.00034717,120]
[403696135,1769490585217,500.0,0.00034717,120]
[403696136,1769490585372,500.0,0.00034717,120]
[403696137,1769490585585,500.0,0.00034717,120]
[403696138,1769490585647,500.0,0.00034717,120]
[403696139,1769490585821,500.0,0.00034717,120]
[403696140,1769490585993,500.0,0.00034717,120]
[403696141,1769490586053,500.0,0.00034717,120]
[403696142,1769490586300,500.0,0.00034717,120]
[403696144,1769490587742,500.0,0.00034717,120]
[403696145,1769490588117,500.0,0.00034717,120]
[403696146,1769490588354,500.0,0.00034717,120]
[403696147,1769490588587,500.0,0.00034717,120]
[403696149,1769490589129,500.0,0.00034717,120]
[403696150,1769490589381,500.0,0.00034717,120]
[403696151,1769490589712,500.0,0.00034717,120]
[403696152,1769490590826,500.0,0.00034717,120]
[403696153,1769490591127,500.0,0.00034717,120]
[403696154,1769490591707,500.0,0.00034717,120]
[403696155,1769490591877,500.0,0.00034717,120]
[403696156,1769490591938,500.0,0.00034717,120]
[403696157,1769490592122,500.0,0.00034717,120]
[403696158,1769490592189,484.88,0.00034717,120]
[403696159,1769490592359,500.0,0.00034717,120]
[403696160,1769490592616,500.0,0.00034717,120]
[403696161,1769490593304,500.0,0.00034717,120]
[403696163,1769490594494,500.0,0.00034717,120]
[403696164,1769490594564,500.0,0.00034717,120]
[403696165,1769490594750,500.0,0.00034717,120]
[403696166,1769490594994,500.0,0.00034717,120]
[403696167,1769490595224,500.0,0.00034717,120]
[403696169,1769490598148,500.0,0.00034717,120]
[403696170,1769490598410,500.0,0.00034717,120]
[403696171,1769490598539,500.0,0.00034717,120]
[403696173,1769490598844,501.07302152,0.00034717,120]
[403696174,1769490598904,500.0,0.00034717,120]
[403696175,1769490598955,501.41241465,0.00034717,120]
[403696176,1769490599025,500.0,0.00034717,120]
[403696177,1769490599101,500.0,0.00034717,120]
[403696178,1769490599265,500.0,0.00034717,120]
[403696179,1769490599405,500.0,0.00034717,120]
[403696180,1769490599515,500.0,0.00034717,120]
[403696181,1769490599744,500.0,0.00034717,120]
[403696182,1769490599945,500.0,0.00034717,120]
[403696183,1769490600879,500.0,0.00034717,120]
[403696184,1769490600974,500.0,0.00034717,120]
[403696185,1769490601206,500.0,0.00034717,120]
[403696186,1769490601509,345.44731374,0.00034717,120]
[403696187,1769490601568,501.02366999,0.00034717,120]
[403696189,1769490603344,500.0,0.00034717,120]
[403696190,1769490603576,500.0,0.00034717,120]
[403696191,1769490603811,500.0,0.00034717,120]
[403696192,1769490604048,500.0,0.00034717,120]
[403696193,1769490604310,500.0,0.00034717,120]
[403696194,1769490604545,500.69975876,0.00034717,120]
[403696200,1769490608572,500.0,0.00034717,120]
[403696201,1769490609110,500.0,0.00034717,120]
[403696202,1769490609384,500.0,0.00034717,120]
[403696203,1769490609957,500.0,0.00034717,120]
[403696204,1769490610172,500.0,0.00034717,120]
[403696205,1769490610621,500.0,0.00034717,120]
[403696208,1769490611024,500.0,0.00034717,120]
[403696209,1769490611136,500.0,0.00034717,120]
[403696210,1769490611408,572.99476416,0.00034717,120]
[403696211,1769490611521,500.0,0.00034717,120]
[403696212,1769490611720,500.0,0.00034717,120]
[403696213,1769490611953,500.0,0.00034717,120]
[403696214,1769490612789,500.0,0.00034717,120]
[403696215,1769490612902,500.0,0.00034717,120]
[403696216,1769490612972,550.95104749,0.00034717,120]
[403696217,1769490613042,500.0,0.00034717,120]
[403696218,1769490613156,500.0,0.00034717,120]
[403696219,1769490613276,500.0,0.00034717,120]
[403696220,1769490613411,500.9300306,0.00034717,120]
[403696221,1769490613533,511.57734189,0.00034717,120]
[403696222,1769490613749,500.0,0.00034717,120]
[403696223,1769490614000,500.0,0.00034717,120]
[403696224,1769490616245,500.0,0.00034717,120]
[403696225,1769490616317,500.0,0.00034717,120]
[403696226,1769490616473,500.0,0.00034717,120]
[403696227,1769490616559,500.0,0.00034717,120]
[403696228,1769490616760,242.45258223,0.00034717,120]
[403696229,1769490616984,500.0,0.00034717,120]
[403696230,1769490617233,500.0,0.00034717,120]
[403696231,1769490617476,500.0,0.00034717,120]
[403696232,1769490617547,500.0,0.00034717,120]
[403696233,1769490617710,500.0,0.00034717,120]
[403696234,1769490617786,500.0,0.00034717,120]
[403696235,1769490617856,500.0,0.00034717,120]
[403696236,1769490618090,500.0,0.00034717,120]
[403696237,1769490618322,500.0,0.00034717,120]
[403696238,1769490618494,500.0,0.00034717,120]
[403696239,1769490618743,500.0,0.00034717,120]
[403696240,1769490618961,500.0,0.00034717,120]
[403696241,1769490621200,500.0,0.00034717,120]
[403696242,1769490621386,500.0,0.00034717,120]
[403696243,1769490621587,500.0,0.00034717,120]
[403696244,1769490621653,500.0,0.00034717,120]
[403696245,1769490621825,500.0,0.00034717,120]
[403696246,1769490621896,502.30207337,0.00034717,120]
[403696247,1769490622057,500.0,0.00034717,120]
[403696248,1769490622451,500.0,0.00034717,120]
[403696249,1769490622676,500.0,0.00034717,120]
[403696250,1769490622907,500.0,0.00034717,120]
[403696251,1769490623067,500.0,0.00034717,120]
[403696252,1769490623132,500.0,0.00034717,120]
[403696253,1769490623300,500.0,0.00034717,120]
[403696254,1769490623538,500.0,0.00034717,120]
[403696255,1769490623610,500.0,0.00034717,120]
[403696256,1769490623679,500.0,0.00034717,120]
[403696257,1769490623778,500.0,0.00034717,120]
[403696258,1769490623848,500.0,0.00034717,120]
[403696259,1769490623920,500.0,0.00034717,120]
[403696260,1769490624036,502.77886244,0.00034717,120]
[403696261,1769490624108,500.0,0.00034717,120]
[403696262,1769490624321,500.0,0.00034717,120]
[403696263,1769490624396,504.82718328,0.00034717,120]
[403696264,1769490624468,500.0,0.00034717,120]
[403696265,1769490624620,500.0,0.00034717,120]
[403696266,1769490624865,500.77173203,0.00034717,120]
[403696267,1769490625115,500.0,0.00034717,120]
[403696268,1769490625339,500.0,0.00034717,120]
[403696269,1769490625566,500.0,0.00034717,120]
[403696270,1769490626289,500.0,0.00034717,120]
[403696271,1769490628340,500.0,0.00034717,120]
[403696272,1769490628579,500.0,0.00034717,120]
[403696273,1769490628820,500.0,0.00034717,120]
[403696274,1769490629067,501.27182461,0.00034717,120]
[403696275,1769490629788,500.0,0.00034717,120]
[403696276,1769490629865,501.57573564,0.00034717,120]
[403696277,1769490630126,500.0,0.00034717,120]
[403696278,1769490630219,500.0,0.00034717,120]
[403696279,1769490630385,500.0,0.00034717,120]
[403696280,1769490630475,500.0,0.00034717,120]
[403696281,1769490630638,500.0,0.00034717,120]
[403696282,1769490630901,500.0,0.00034717,120]
[403696284,1769490631161,500.0,0.00034717,120]
[403696285,1769490631400,267.42172891,0.00034717,120]
[403696287,1769490631477,500.0,0.00034717,120]
[403696297,1769490631678,500.0,0.00034717,120]
[403696310,1769490631848,-999.40035978,0.00013272,2]
[403696311,1769490631858,-300.0,0.00013272,2]
[403696313,1769490631868,-1200.0,0.00013272,2]
[403696315,1769490631878,-151.0,0.00013273,2]
[403696317,1769490631889,-156.71008862,0.00013273,2]
[403696318,1769490631898,-500.0,0.00013273,2]
[403696320,1769490631907,-500.0,0.00013273,2]
[403696321,1769490631916,-500.0,0.00013273,2]
[403696323,1769490631926,-500.0,0.00013273,2]
[403696326,1769490631935,-500.0,0.00013273,2]
[403696329,1769490631945,-500.0,0.00013273,2]
[403696331,1769490631954,-501.75917097,0.00013273,2]
[403696334,1769490631963,-501.97620445,0.00013273,2]
[403696337,1769490631972,-502.29122988,0.00013273,2]
[403696339,1769490631981,-500.0,0.00013273,2]
[403696342,1769490631991,-500.0,0.00013273,2]
[403696345,1769490632000,-502.12310786,0.00013273,2]
[403696348,1769490632009,-496.43778861,0.00013273,2]
[403696350,1769490632019,-500.0,0.00013273,2]
[403696352,1769490632028,-501.25852904,0.00013273,2]
[403696354,1769490632037,-521.06949265,0.00013273,2]
[403696356,1769490632045,-500.0,0.00013273,2]
[403696357,1769490632057,-501.1042158,0.00013273,2]
[403696359,1769490632066,-502.85008067,0.00013273,2]
[403696361,1769490632075,-500.0,0.00013273,2]
[403696362,1769490632084,-501.55425115,0.00013273,2]
[403696364,1769490632093,-185.91620474,0.00013273,2]
[403696366,1769490632102,-500.0,0.00013273,2]
[403696368,1769490632112,-500.0,0.00013273,2]
[403696369,1769490632121,-500.0,0.00013273,2]
[403696371,1769490632130,-158.17482814,0.00013273,2]
[403696373,1769490632139,-500.0,0.00013273,2]
[403696375,1769490632149,-500.0,0.00013273,2]
[403696376,1769490632158,-500.0,0.00013273,2]
[403696378,1769490632168,-500.883944,0.00013273,2]
[403696380,1769490632177,-500.0,0.00013273,2]
[403696382,1769490632187,-500.0,0.00013273,2]
[403696383,1769490632196,-501.77433324,0.00013273,2]
[403696385,1769490632206,-501.58708768,0.00013273,2]
[403696387,1769490632215,-500.0,0.00013273,2]
[403696389,1769490632225,-500.0,0.00013273,2]
[403696391,1769490632235,-500.0,0.00013273,2]
[403696392,1769490632244,-500.0,0.00013273,2]
[403696394,1769490632253,-500.0,0.00013273,2]
[403696396,1769490632263,-500.0,0.00013273,2]
[403696397,1769490632272,-500.0,0.00013273,2]
[403696399,1769490632281,-186.63247328,0.00013274,2]
[403696401,1769490632291,-160.0,0.00013276,2]
[403696403,1769490632304,-500.0,0.00013537,2]
[403696404,1769490632313,-300.0,0.00013537,2]
[403696406,1769490632323,-300.0,0.00013537,2]
[403696408,1769490632332,-300.0,0.00013537,2]
[403696410,1769490632342,-300.0,0.00013537,2]
[403696411,1769490632351,-300.0,0.00013537,2]
[403696413,1769490632360,-300.0,0.00013537,2]
[403696415,1769490632369,-300.0,0.00013537,2]
[403696417,1769490632380,-300.0,0.00013537,2]
[403696418,1769490632389,-300.0,0.00013537,2]
[403696420,1769490632399,-300.0,0.00013537,2]
[403696422,1769490632408,-300.0,0.00013537,2]
[403696424,1769490632417,-300.0,0.00013537,2]
[403696426,1769490632427,-300.0,0.00013537,2]
[403696427,1769490632436,-300.0,0.00013537,2]
[403696429,1769490632445,-300.0,0.00013537,2]
[403696431,1769490632454,-300.0,0.00013673,2]
[403696432,1769490632463,-300.0,0.00013673,2]
[403696434,1769490632473,-500.0,0.00013698,2]
[403696436,1769490632484,-500.0,0.00013698,2]
[403696438,1769490632494,-768.98,0.00013698,2]
[403696439,1769490632503,-768.98,0.00013698,2]
[403696441,1769490632513,-527.96127866,0.00013698,2]
[403696443,1769490632522,-568.46254024,0.00013698,2]
[403696445,1769490632531,-500.0,0.00013698,2]
[403696447,1769490632541,-500.0,0.00013698,2]
[403696448,1769490632550,-504.01808566,0.00013698,2]
[403696450,1769490632560,-500.0,0.00013698,2]
[403696452,1769490632569,-500.0,0.00013698,2]
[403696453,1769490632578,-529.65,0.00013698,2]
[403696455,1769490632587,-529.65,0.00013698,2]
[403696457,1769490632596,-529.65,0.00013698,2]
[403696458,1769490632607,-529.65,0.00013698,2]
[403696460,1769490632616,-500.0,0.00013698,2]
[403696462,1769490632625,-500.0,0.00013698,2]
[403696464,1769490632635,-500.0,0.00013698,2]
[403696465,1769490632644,-500.0,0.00013698,2]
[403696467,1769490632652,-500.0,0.00013698,2]
[403696469,1769490632662,-500.0,0.00013698,2]
[403696471,1769490632671,-1000.0,0.00013698,2]
[403696472,1769490632680,-1000.0,0.00013698,2]
[403696474,1769490632690,-1000.0,0.00013698,2]
[403696476,1769490632699,-1000.0,0.00013698,2]
[403696478,1769490632710,-1329.216569,0.00013699,2]
[403696479,1769490632719,-500.0,0.00013699,2]
[403696481,1769490632729,-501.31276007,0.00013699,2]
[403696484,1769490632746,-500.95494933,0.00013699,2]
[403696486,1769490632756,-500.0,0.00013699,2]
[403696487,1769490632766,-500.89797184,0.00013699,2]
[403696489,1769490632776,-589.25431142,0.00013699,2]
[403696491,1769490632787,-501.0249452,0.00013699,2]
[403696493,1769490632797,-486.59081028,0.00013699,2]
[403696499,1769490632869,500.0,0.00034717,120]
[403696507,1769490632961,496.71785264,0.00034717,120]
[403696588,1769490633983,500.0,0.00034717,120]
[403696609,1769490634218,501.95122154,0.00034717,120]
[403696622,1769490634368,500.0,0.00034717,120]
[403696643,1769490634612,500.0,0.00034717,120]
[403696644,1769490634890,500.0,0.00034717,120]
[403696645,1769490635125,500.0,0.00034717,120]
[403696935,1769490637990,-673.64,0.00013698,2]
[403696937,1769490637999,-673.64,0.00013698,2]
[403696939,1769490638009,-673.64,0.00013698,2]
[403696941,1769490638018,-673.64,0.00013698,2]
[403696943,1769490638027,-673.64,0.00013698,2]
[403696945,1769490638036,-14.49761553,0.00013699,2]
[403696947,1769490638045,-304.93702398,0.00013699,2]
[403696949,1769490638054,-500.70386836,0.00013699,2]
[403696951,1769490638063,-500.0,0.00013699,2]
[403696953,1769490638072,-623.82359853,0.00013699,2]
[403696955,1769490638081,-501.12242478,0.00013699,2]
[403696957,1769490638091,-174.54782333,0.00013699,2]
[403696959,1769490638100,-501.98972367,0.00013699,2]
[403696961,1769490638109,-500.41943489,0.00013699,2]
[403696963,1769490638118,-500.0,0.00013699,2]
[403696964,1769490638127,-468.73391073,0.00013699,2]
[403696966,1769490638136,-500.0,0.00013699,2]
[403696968,1769490638145,-501.75194827,0.00013699,2]
[403696970,1769490638155,-500.0,0.00013699,2]
[403696971,1769490638164,-155.17423582,0.00013699,2]
[403696972,1769490638173,-411.85312002,0.00013699,2]
[403696973,1769490638183,-500.0,0.00013699,2]
[403696974,1769490638192,-198.42676285,0.00013699,2]
[403696975,1769490638202,-541.53456791,0.00013699,2]
[403696976,1769490638211,-510.92432591,0.00013699,2]
[403696977,1769490638220,-158.18226619,0.00013699,2]
[403696978,1769490638229,-500.0,0.00013699,2]
[403696979,1769490638239,-501.08866766,0.00013699,2]
[403696980,1769490638248,-500.0,0.00013699,2]
[403696981,1769490638257,-500.0,0.00013699,2]
[403696982,1769490638266,-238.47473176,0.00013699,2]
[403696983,1769490638275,-501.35655217,0.00013699,2]
[403696984,1769490638285,-160.18699442,0.00013699,2]
[403696985,1769490638294,-158.17974748,0.00013699,2]
[403696986,1769490638305,-500.0,0.00013699,2]
[403696987,1769490638315,-500.0,0.00013699,2]
[403696988,1769490638324,-501.29701812,0.00013699,2]
[403696989,1769490638334,-500.90012842,0.00013699,2]
[403696990,1769490638344,-501.54392997,0.00013699,2]
[403696991,1769490638354,-500.74775617,0.00013699,2]
[403696993,1769490638365,-174.90905277,0.00013699,2]
[403696994,1769490638374,-500.0,0.00013699,2]
[403696996,1769490638386,-476.74190726,0.00013699,2]
[403696998,1769490638395,-500.0,0.00013699,2]
[403697000,1769490638403,-500.0,0.00013699,2]
[403697002,1769490638413,-502.64581019,0.00013699,2]
[403697004,1769490638422,-501.51561113,0.00013699,2]
[403697006,1769490638432,-502.57101122,0.00013699,2]
[403697008,1769490638442,-500.0,0.00013699,2]
[403697010,1769490638451,-500.20326881,0.00013699,2]
[403697012,1769490638461,-158.38524854,0.00013699,2]
[403697014,1769490638470,-160.18429647,0.00013699,2]
[403697016,1769490638479,-500.0,0.00013699,2]
[403697018,1769490638488,-500.0,0.00013699,2]
[403697020,1769490638497,-500.59368063,0.00013699,2]
[403697022,1769490638506,-500.10377766,0.00013699,2]
[403697024,1769490638515,-506.66970868,0.00013699,2]
[403697026,1769490638527,-320.34997503,0.00013699,2]
[403697028,1769490638537,-500.89384656,0.00013699,2]
[403697030,1769490638546,-461.39524545,0.00013699,2]
[403697032,1769490638555,-502.74401969,0.00013699,2]
[403697034,1769490638564,-500.0,0.00013699,2]
[403697036,1769490638573,-500.0,0.00013699,2]
[403697038,1769490638582,-502.02072141,0.00013699,2]
[403697040,1769490638592,-500.0,0.00013699,2]
[403697042,1769490638601,-501.72501512,0.00013699,2]
[403697044,1769490638611,-500.0,0.00013699,2]
[403697046,1769490638620,-502.51291624,0.00013699,2]
[403697048,1769490638629,-502.20512648,0.00013699,2]
[403697050,1769490638638,-500.0,0.00013806,2]
[403697052,1769490638647,-768.98,0.00013806,2]
[403697054,1769490638656,-500.0,0.00013806,2]
[403697055,1769490638665,-500.0,0.00013806,2]
[403697057,1769490638674,-500.0,0.00013806,2]
[403697059,1769490638683,-500.0,0.00013806,2]
[403697061,1769490638692,-600.0,0.00013807,2]
[403697063,1769490638701,-500.0,0.00013811,2]
[403697065,1769490638711,-607.72533731,0.0001382,2]
[403697067,1769490638719,-187.1097719,0.0001382,2]
[403697069,1769490638728,-258.8838354,0.0001382,2]
[403697071,1769490638738,-673.64,0.0001382,2]
[403697073,1769490638747,-501.18236536,0.00013821,2]
[403697075,1769490638756,-500.0,0.00013821,2]
[403697077,1769490638765,-500.0,0.00013821,2]
[403697079,1769490638774,-501.68093005,0.00013821,2]
[403697081,1769490638783,-501.45574585,0.00013821,2]
[403697083,1769490638792,-500.94011661,0.00013821,2]
[403697085,1769490638801,-506.56450661,0.00013821,2]
[403697087,1769490638811,-1005.91223891,0.00013821,2]
[403697089,1769490638820,-1000.0,0.00013821,2]
[403697091,1769490638829,-184.23037821,0.00013821,2]
[403697093,1769490638839,-1000.0,0.00013821,2]
[403697095,1769490638848,-1000.0,0.00013821,2]
[403697097,1769490638857,-1000.0,0.00013821,2]
[403697099,1769490638867,-502.47336976,0.00013821,2]
[403697101,1769490638876,-1001.70379269,0.00013821,2]
[403697103,1769490638886,-715.68353403,0.00013821,2]
[403697105,1769490638895,-502.0109427,0.00013821,2]
[403697106,1769490638904,-754.88218122,0.00013821,2]
[403697109,1769490638914,-1000.0,0.00013821,2]
[403697111,1769490638928,-973.53260077,0.00013821,2]
[403697113,1769490638938,-1000.0,0.00013821,2]
[403697115,1769490638947,-1000.0,0.00013821,2]
[403697117,1769490638956,-354.13666095,0.00013821,2]
[403697119,1769490638965,-504.9226913,0.00013821,2]
[403697121,1769490638974,-1000.0,0.00013821,2]
[403697123,1769490638983,-1000.0,0.00013821,2]
[403697125,1769490638993,-1105.3710154,0.00013821,2]
[403697127,1769490639002,-1000.0,0.00013821,2]
[403697129,1769490639011,-1000.0,0.00013821,2]
[403697131,1769490639020,-1000.0,0.00013821,2]
[403697133,1769490639029,-1000.0,0.00013821,2]
[403697135,1769490639038,-1052.84529982,0.00013821,2]
[403697137,1769490639047,-1005.74874156,0.00013821,2]
[403697139,1769490639057,-500.0,0.00014085,2]
[403697141,1769490639069,-5271.64395904,0.00014147,2]
[403697143,1769490639079,-600.16676177,0.00014221,2]
[403697145,1769490639088,-600.0,0.00014221,2]
[403697147,1769490639097,-501.17424453,0.00014247,2]
[403697149,1769490639106,-505.55283869,0.00014247,2]
[403697151,1769490639115,-433.13636178,0.00014247,2]
[403697153,1769490639125,-511.64534676,0.00014247,2]
[403697155,1769490639134,-1001.24468522,0.00014247,2]
[403697157,1769490639143,-501.71608927,0.00014247,2]
[403697159,1769490639152,-501.47998583,0.00014247,2]
[403697161,1769490639161,-505.71121163,0.00014247,2]
[403697163,1769490639170,-502.18438446,0.00014247,2]
[403697165,1769490639179,-1000.0,0.00014247,2]
[403697167,1769490639189,-1000.0,0.00014247,2]
[403697169,1769490639199,-1101.81391883,0.00014247,2]
[403697171,1769490639209,-1002.46181416,0.00014247,2]
[403697173,1769490639218,-1005.11057663,0.00014247,2]
[403697175,1769490639227,-394.75876308,0.00014247,2]
[403697177,1769490639236,-1001.21907917,0.00014247,2]
[403697179,1769490639245,-1000.89048744,0.00014247,2]
[403697181,1769490639254,-1001.98064005,0.00014247,2]
[403697183,1769490639263,-256.98562689,0.00014247,2]
[403697185,1769490639272,-311.14416549,0.00014247,2]
[403697187,1769490639281,-500.0,0.00014359,2]
[403697189,1769490639291,-1000.0,0.00014368,2]
[403697192,1769490639303,-1000.0,0.00014368,2]
[403697194,1769490639314,-1000.0,0.00014368,2]
[403697196,1769490639323,-1000.0,0.00014368,2]
[403697198,1769490639332,-1500.0,0.00014368,2]
[403697199,1769490639342,-1383.52564742,0.00014368,2]
[403697202,1769490639353,-1451.39147836,0.00014368,2]
[403697203,1769490639363,-508.93740535,0.00014368,2]